bitfinex/quotes_ETHUSD_20230110
["timestamp","ask_amount","ask_price","bid_price","bid_amount"]
[1673379929587,28.35141123,1339.9,1339.6,2.83e-06]
[1673379929750,32.14907187,1339.9,1339.6,2.83e-06]
[1673379931116,42.39514181,1339.9,1339.6,2.83e-06]
[1673379932410,42.84294181,1339.9,1339.6,2.83e-06]
[1673379935215,27.91571181,1339.9,1339.6,2.83e-06]
[1673379935539,32.59647187,1339.9,1339.6,2.83e-06]
[1673379936702,42.84219181,1339.9,1339.6,2.83e-06]
[1673379936907,50.38082732,1339.9,1339.6,2.83e-06]
[1673379937116,47.59834738,1339.9,1339.6,2.83e-06]
[1673379937339,2.22598396,1339.8,1339.6,2.83e-06]
[1673379937563,4.72598396,1339.8,1339.6,2.83e-06]
[1673379937779,14.9287,1339.7,1339.6,2.83e-06]
[1673379938197,7.46435,1339.7,1339.6,2.83e-06]
[1673379939494,7.46435,1339.7,1339.5,0.10029439]
[1673379939495,0.00259521,1339.6,1339.5,0.10029439]
[1673379944018,1.52859521,1339.6,1339.5,0.10029439]
[1673379945164,0.00259521,1339.6,1339.5,0.10029439]
[1673379947971,0.00259521,1339.6,1339.5,1.95282004]
[1673379948174,0.00259521,1339.6,1339.5,0.10029439]
[1673379949251,0.00259521,1339.6,1339.5,1.95282668]
[1673379949459,7.46750521,1339.6,1339.5,1.95282668]
[1673379950597,14.93241521,1339.6,1339.5,1.95282668]
[1673379951661,0.00259521,1339.6,1339.5,1.95282668]
[1673379951880,0.00259521,1339.6,1339.5,3.28082668]
[1673379952058,0.00259521,1339.6,1339.5,4.39588859]
[1673379952268,0.00259521,1339.6,1339.5,3.28082668]
[1673379952478,0.00259521,1339.6,1339.5,5.78082668]
[1673379952684,0.00259521,1339.6,1339.5,6.99488859]
[1673379952933,0.00259521,1339.6,1339.5,5.87982668]
[1673379953149,0.00259521,1339.6,1339.5,6.99488859]
[1673379955221,0.00259521,1339.6,1339.5,10.81661737]
[1673379955428,0.00259521,1339.6,1339.5,36.20366436]
[1673379955680,0.00259521,1339.6,1339.5,38.98261181]
[1673379955888,0.00259521,1339.6,1339.5,37.8675499]
[1673379956787,0.00259521,1339.6,1339.5,27.69914927]
[1673379957001,0.00259521,1339.6,1339.5,12.76820927]
[1673379957237,0.00259521,1339.6,1339.5,17.45473182]
[1673379957587,0.00259521,1339.6,1339.5,11.10057228]
[1673379957951,0.00259521,1339.6,1339.5,15.78709483]
[1673379958282,0.00259521,1339.6,1339.5,11.10057228]
[1673379958486,0.00259521,1339.6,1339.5,6.99362483]
[1673379958725,0.00259521,1339.6,1339.5,7.33262483]
[1673379961368,0.00259521,1339.6,1339.5,14.79809483]
[1673379961947,0.00259521,1339.6,1339.5,16.46573182]
[1673379962172,0.00259521,1339.6,1339.5,31.39667182]
[1673379962384,0.00259521,1339.6,1339.5,44.57176319]
[1673379962616,0.00259521,1339.6,1339.5,48.13186319]
[1673379963154,0.00259521,1339.6,1339.5,46.4642262]
[1673379963470,0.00259521,1339.6,1339.5,58.70814748]
[1673379964604,0.00259521,1339.6,1339.5,58.70763451]
[1673379965840,32.08598396,1340.0,1339.5,58.70763451]
[1673379966040,17.15144396,1340.0,1339.7,4.175]
[1673379966250,27.39951561,1340.0,1339.7,1.675]
[1673379966843,27.39951561,1340.0,1339.6,12.6044]
[1673379966844,9.68940396,1339.9,1339.6,13.04534745]
[1673379966987,9.68940396,1339.9,1339.6,10.2664]
[1673379967198,2.22598396,1339.8,1339.6,10.26308311]
[1673379967453,2.22846567,1339.8,1339.6,10.26308311]
[1673379967881,2.23046567,1339.8,1339.6,10.26008311]
[1673379968038,2.22846567,1339.8,1339.6,10.26308311]
[1673379968249,4.22885123,1339.8,1339.6,10.26308311]
[1673379968454,4.22885123,1339.8,1339.6,0.099]
[1673379968455,29.40301117,1339.8,1339.6,0.099]
[1673379968731,29.40301117,1339.8,1339.5,10.76519439]
[1673379968881,9.69065396,1339.7,1339.5,10.76519439]
[1673379969097,9.69313567,1339.7,1339.5,0.19929439]
[1673379969340,0.96931357,1339.6,1339.5,0.10029439]
[1673379969883,8.43422357,1339.6,1339.5,0.10029439]
[1673379970454,0.96931357,1339.6,1339.5,0.10029439]
[1673379971191,18.30153567,1339.7,1339.5,0.10029439]
[1673379971412,18.23553567,1339.7,1339.5,0.10029439]
[1673379973667,25.70038567,1339.7,1339.5,0.10029439]
[1673379974268,23.47440171,1339.7,1339.5,0.10029439]
[1673379975335,0.00248171,1339.7,1339.5,0.10029439]
[1673379978411,0.00248171,1339.7,1339.5,7.56571439]
[1673379978554,0.00248171,1339.7,1339.5,7.66471439]
[1673379979527,0.00248171,1339.7,1339.5,0.19929439]
[1673379979752,0.00248171,1339.7,1339.5,0.10029439]
[1673379980710,3.02604821,1339.7,1339.5,0.10029439]
[1673379981235,5.25203217,1339.7,1339.5,0.10029439]
[1673379981415,12.71657217,1339.7,1339.5,0.10029439]
[1673379982645,5.25203217,1339.7,1339.5,0.10029439]
[1673379982816,3.02604821,1339.7,1339.5,0.10029439]
[1673379983283,5.25203217,1339.7,1339.5,0.10029439]
[1673379983598,10.49053821,1339.7,1339.5,0.10029439]
[1673379984024,3.02604821,1339.7,1339.5,0.10029439]
[1673379984195,5.25203217,1339.7,1339.5,0.10029439]
[1673379984405,12.71656217,1339.7,1339.5,0.10029439]
[1673379985067,10.49057821,1339.7,1339.5,0.10029439]
[1673379985384,3.02604821,1339.7,1339.5,0.10029439]
[1673379985758,12.71647217,1339.7,1339.5,0.10029439]
[1673379986075,5.25203217,1339.7,1339.5,0.10029439]
[1673379986284,12.71647217,1339.7,1339.5,0.10029439]
[1673379987376,5.25203217,1339.7,1339.5,0.10029439]
[1673379987695,2.65681858,1339.7,1339.5,0.10029439]
[1673379988807,0.43083462,1339.7,1339.5,0.10029439]
[1673379989061,0.43083462,1339.7,1339.5,7.56556439]
[1673379989230,0.43083462,1339.7,1339.5,0.19929439]
[1673379989439,0.43083462,1339.7,1339.5,0.10029439]
[1673379990017,0.43083462,1339.7,1339.5,7.56556439]
[1673379990203,0.43083462,1339.7,1339.5,7.66456439]
[1673379990586,0.43083462,1339.7,1339.5,15.13003439]
[1673379990843,0.43083462,1339.7,1339.5,0.19929439]
[1673379991115,10.12384396,1339.8,1339.5,0.10029439]
[1673379991955,10.12384396,1339.8,1339.5,0.1044137]
[1673379997267,12.9063239,1339.8,1339.5,0.1044137]
[1673379997471,31.69642929,1339.8,1339.5,0.1044137]
[1673379998083,14.92982,1339.6,1339.5,0.1044137]
[1673379998299,14.92982,1339.6,1339.5,0.10029439]
[1673379999381,7.46491,1339.6,1339.5,0.10029439]
[1673380000230,22.46001,1339.7,1339.5,0.10029439]
[1673380000542,21.51047589,1339.7,1339.5,0.10029439]
[1673380000701,28.97514589,1339.7,1339.5,0.10029439]
[1673380001805,21.51047589,1339.7,1339.5,0.10029439]
[1673380002011,28.97514589,1339.7,1339.5,0.10029439]
[1673380002168,21.51047589,1339.7,1339.5,0.10029439]
[1673380002588,28.97514589,1339.7,1339.5,0.10029439]
[1673380004282,31.75762583,1339.7,1339.5,0.10029439]
[1673380006743,9.69089396,1339.6,1339.5,0.10029439]
[1673380007260,17.15580396,1339.6,1339.5,0.10029439]
[1673380007993,2.22598396,1339.6,1339.5,0.10029439]
[1673380008185,17.15580396,1339.6,1339.5,0.10029439]
[1673380008787,9.69089396,1339.6,1339.5,0.10029439]
[1673380011516,2.22598396,1339.6,1339.5,0.10029439]
[1673380012307,2.22598396,1339.6,1339.5,0.09796465]
[1673380013110,17.77794994,1339.7,1339.5,0.09796465]
[1673380013111,20.0039339,1339.7,1339.5,0.09796465]
[1673380013321,24.62780811,1339.7,1339.5,0.09796465]
[1673380013573,7.46491,1339.6,1339.5,0.09796465]
[1673380014379,9.69089396,1339.6,1339.5,0.09796465]
[1673380015468,17.15580396,1339.6,1339.5,0.09796465]
[1673380016263,9.69089396,1339.6,1339.5,0.09796465]
[1673380017148,17.15580396,1339.6,1339.5,0.09796465]
[1673380017362,9.69089396,1339.6,1339.5,0.09796465]
[1673380019037,17.15580396,1339.6,1339.5,0.09796465]
[1673380019259,2.22598396,1339.6,1339.5,0.09796465]
[1673380020324,20.0038739,1339.7,1339.5,0.09796465]
[1673380020537,23.88135411,1339.7,1339.5,0.09796465]
[1673380020751,16.41661411,1339.7,1339.5,0.09796465]
[1673380020908,2.22598396,1339.6,1339.5,0.09796465]
[1673380022211,9.69089396,1339.6,1339.5,0.09796465]
[1673380023220,24.62071396,1339.6,1339.5,0.09796465]
[1673380028053,14.92982,1339.6,1339.5,0.09796465]
[1673380028317,12.5390539,1339.7,1339.5,1.51196465]
[1673380028475,2.22598396,1339.7,1339.5,1.51196465]
[1673380029117,27.34404994,1339.8,1339.5,1.51196465]
[1673380029118,20.4364039,1339.8,1339.5,1.51196465]
[1673380029335,20.4364039,1339.8,1339.5,5.33369343]
[1673380029336,19.9365039,1339.8,1339.5,5.33369343]
[1673380029539,2.22598396,1339.7,1339.5,1.61096465]
[1673380029754,17.15528396,1339.7,1339.5,1.51196465]
[1673380029989,14.9293,1339.7,1339.6,1.672]
[1673380030152,0.066,1339.8,1339.7,1.11141821]
[1673380030369,20.6229939,1339.9,1339.7,2.78341821]
[1673380030370,20.6225639,1339.9,1339.7,2.78341821]
[1673380030734,35.1230639,1339.9,1339.7,1.11141821]
[1673380030896,27.3989639,1339.9,1339.7,1.11141821]
[1673380031872,2.22598396,1339.8,1339.7,1.11141821]
[1673380032078,7.4638,1339.8,1339.7,1.11141821]
[1673380034675,14.9276,1339.8,1339.7,1.11141821]
[1673380035511,7.4638,1339.8,1339.7,1.11141821]
[1673380035767,5.0744639,1339.9,1339.7,1.11141821]
[1673380035984,2.22598396,1339.9,1339.7,1.11141821]
[1673380037436,20.14065994,1340.0,1339.7,11.07564821]
[1673380037437,14.9038639,1340.0,1339.7,11.07564821]
[1673380037650,12.05538396,1340.0,1339.7,11.17080628]
[1673380038247,2.65138396,1340.0,1339.7,11.17080628]
[1673380038778,9.68877396,1340.0,1339.8,1.671]
[1673380038990,32.15198396,1340.1,1339.9,1.677]
[1673380039217,2.22598396,1340.1,1339.9,9.13977]
[1673380039428,2.22598396,1340.1,1339.9,1.776]
[1673380039624,2.22598396,1340.1,1339.9,9.14014]
[1673380039840,2.22598396,1340.1,1339.9,9.23914]
[1673380040278,5.5001639,1340.2,1339.9,16.70238]
[1673380040510,12.8957539,1340.2,1339.9,9.23914]
[1673380040821,12.8957539,1340.2,1339.9,1.776]
[1673380041034,12.8957539,1340.2,1339.9,1.677]
[1673380041346,12.8957539,1340.2,1339.9,9.14022]
[1673380041535,12.8957539,1340.2,1339.9,9.23922]
[1673380041752,12.8957539,1340.2,1339.9,1.776]
[1673380041939,12.8957539,1340.2,1339.9,1.677]
[1673380042151,10.11327396,1340.2,1339.9,1.677]
[1673380042366,12.8957539,1340.2,1339.9,1.677]
[1673380044220,10.11327396,1340.2,1339.9,1.677]
[1673380044779,12.8957539,1340.2,1339.9,1.677]
[1673380045024,10.11327396,1340.2,1339.9,1.677]
[1673380046137,2.65168396,1340.2,1339.9,1.677]
[1673380046461,2.65168396,1340.2,1339.9,9.14008]
[1673380046462,10.11328396,1340.2,1339.9,9.14008]
[1673380046827,10.11328396,1340.2,1339.9,9.23908]
[1673380047514,10.11328396,1340.2,1339.9,1.776]
[1673380047718,17.57488396,1340.2,1339.9,1.677]
[1673380049605,2.65168396,1340.2,1339.9,27.88842878]
[1673380049954,0.4257,1340.2,1339.9,27.98742878]
[1673380050165,0.4257,1340.2,1340.0,2.5]
[1673380050550,37.67054544,1340.3,1340.0,1.671]
[1673380050761,37.60454544,1340.3,1340.0,1.671]
[1673380051446,28.12734544,1340.3,1340.0,1.671]
[1673380052358,25.3448655,1340.3,1340.0,1.671]
[1673380052569,17.8836355,1340.3,1340.0,1.671]
[1673380052781,28.12743544,1340.3,1340.0,1.671]
[1673380053441,20.66611544,1340.3,1340.0,1.671]
[1673380053600,28.12712544,1340.3,1340.0,1.671]
[1673380053810,35.66576095,1340.3,1340.0,1.671]
[1673380055405,35.66575095,1340.3,1340.0,1.671]
[1673380056030,28.20474095,1340.3,1340.0,1.671]
[1673380056254,35.66575095,1340.3,1340.0,1.671]
[1673380056800,28.20474095,1340.3,1340.0,1.671]
[1673380057093,2.22598396,1340.2,1340.0,1.671]
[1673380057279,9.68785396,1340.2,1340.0,1.671]
[1673380057492,17.14972396,1340.2,1340.0,1.671]
[1673380057941,9.68785396,1340.2,1340.0,1.671]
[1673380058438,17.14972396,1340.2,1340.0,1.671]
[1673380059436,9.68785396,1340.2,1340.0,1.671]
[1673380060455,2.8012155,1340.3,1340.1,1.67445664]
[1673380060685,0.08503154,1340.3,1340.1,15.08140942]
[1673380060852,0.08503154,1340.3,1340.2,2.5]
[1673380061061,0.08503154,1340.3,1340.1,30.10415942]
[1673380061425,0.08503154,1340.3,1340.2,7.46157]
[1673380061652,0.08503154,1340.3,1340.2,11.76335935]
[1673380062892,0.08503154,1340.3,1340.2,19.22492935]
[1673380064282,0.08503154,1340.3,1340.2,26.68649935]
[1673380065321,0.08503154,1340.3,1340.2,19.22492935]
[1673380065533,0.08503154,1340.3,1340.2,11.76335935]
[1673380067649,0.08503154,1340.3,1340.2,19.22492935]
[1673380067859,0.9296203,1340.3,1340.2,19.22492935]
[1673380068092,0.9296203,1340.3,1340.2,26.68649935]
[1673380068230,0.9296203,1340.3,1340.2,19.22492935]
[1673380070438,0.9296203,1340.3,1340.2,17.54792935]
[1673380070909,0.9296203,1340.3,1340.2,25.00949935]
[1673380071339,0.9296203,1340.3,1340.2,17.54792935]
[1673380072433,0.9296203,1340.3,1340.2,10.08635935]
[1673380073095,0.9296203,1340.3,1340.2,17.54792935]
[1673380073321,0.9296203,1340.3,1340.2,10.08635935]
[1673380073530,0.9296203,1340.3,1340.2,11.76335935]
[1673380073753,0.9296203,1340.3,1340.2,19.22492935]
[1673380076262,0.9296203,1340.3,1340.2,11.76335935]
[1673380076795,0.9296203,1340.3,1340.2,19.22492935]
[1673380077110,0.9296203,1340.3,1340.2,26.68649935]
[1673380077646,0.92638067,1340.3,1340.2,19.22492935]
[1673380078322,1.08503154,1340.4,1340.2,19.22492935]
[1673380078529,1.08503154,1340.4,1340.3,2.60071988]
[1673380078753,1.08503154,1340.4,1340.3,17.52273988]
[1673380078999,1.08503154,1340.4,1340.3,25.08274988]
[1673380081693,1.08503154,1340.4,1340.3,28.88041052]
[1673380083518,1.08503154,1340.4,1340.3,28.88244045]
[1673380083729,1.08503154,1340.4,1340.3,34.35453309]
[1673380084840,1.08503154,1340.4,1340.3,30.54344045]
[1673380085779,1.08503154,1340.4,1340.3,37.69880088]
[1673380086217,1.08503154,1340.4,1340.3,37.35453309]
[1673380088317,1e-08,1340.4,1340.3,37.35453309]
[1673380088536,1e-08,1340.4,1340.3,45.75033309]
[1673380089745,1e-08,1340.4,1340.3,44.07333309]
[1673380090572,1e-08,1340.4,1340.3,51.87861088]
[1673380090782,1e-08,1340.4,1340.3,58.18342162]
[1673380091160,1e-08,1340.4,1340.3,55.40673947]
[1673380091605,1e-08,1340.4,1340.3,55.63673947]
[1673380093047,1e-08,1340.4,1340.3,53.78561088]
[1673380093420,0.09017245,1340.5,1340.3,53.78561088]
[1673380093592,0.09017245,1340.5,1340.4,9.33944999]
[1673380093945,0.09017245,1340.5,1340.4,24.35934999]
[1673380094156,0.09017245,1340.5,1340.4,7.76144999]
[1673380096035,0.09017245,1340.5,1340.4,15.22189999]
[1673380096568,0.09017245,1340.5,1340.4,22.68234999]
[1673380097986,0.09017245,1340.5,1340.4,15.22189999]
[1673380098527,0.09017245,1340.5,1340.4,7.76144999]
[1673380100313,0.09017245,1340.5,1340.4,15.22189999]
[1673380101067,0.09017245,1340.5,1340.4,22.68234999]
[1673380104192,0.09017245,1340.5,1340.4,15.22189999]
[1673380104879,0.09017245,1340.5,1340.4,22.68234999]
[1673380105189,0.09017245,1340.5,1340.4,11.42423935]
[1673380105406,0.09017245,1340.5,1340.4,3.96378935]
[1673380105620,0.09017245,1340.5,1340.4,11.32523935]
[1673380105833,0.09017245,1340.5,1340.4,11.42423935]
[1673380107070,0.09017245,1340.5,1340.4,3.96378935]
[1673380107245,0.09017245,1340.5,1340.4,11.32523935]
[1673380107461,0.09017245,1340.5,1340.4,11.42423935]
[1673380110509,0.09504047,1340.6,1340.5,2.5]
[1673380110722,0.09504047,1340.6,1340.5,31.27808052]
[1673380110929,0.09504047,1340.6,1340.5,31.37708052]
[1673380112333,0.09504047,1340.6,1340.5,30.72806226]
[1673380112557,0.09504047,1340.6,1340.5,32.67914028]
[1673380112869,0.09504047,1340.6,1340.5,30.72808705]
[1673380113083,0.09504047,1340.6,1340.5,28.87708052]
[1673380114185,0.09504047,1340.6,1340.5,28.87915459]
[1673380115547,0.09504047,1340.6,1340.5,38.98551543]
[1673380115796,0.09504047,1340.6,1340.5,43.44808501]
[1673380116007,0.09504047,1340.6,1340.5,43.10381722]
[1673380116387,0.09504047,1340.6,1340.5,43.33381722]
[1673380116740,0.09504047,1340.6,1340.5,43.67808501]
[1673380117151,0.09504047,1340.6,1340.5,43.33381722]
[1673380117361,0.09504047,1340.6,1340.5,43.67808501]
[1673380118222,0.09504047,1340.6,1340.5,43.33381722]
[1673380118429,1e-08,1340.8,1340.6,2.5]
[1673380118598,1e-08,1340.8,1340.7,28.09103064]
[1673380118808,1e-08,1340.8,1340.7,28.19003064]
[1673380120407,1e-08,1340.8,1340.7,39.62794844]
[1673380120592,0.10296851,1340.9,1340.7,49.86257282]
[1673380120593,8.52e-06,1340.9,1340.7,49.86257282]
[1673380120806,8.52e-06,1340.9,1340.8,15.22611103]
[1673380121018,8.52e-06,1340.9,1340.8,41.04880103]
[1673380121334,8.52e-06,1340.9,1340.8,37.24674127]
[1673380121664,8.52e-06,1340.9,1340.8,34.47090689]
[1673380121869,8.52e-06,1340.9,1340.8,30.94835064]
[1673380122803,8.52e-06,1340.9,1340.8,6.89666064]
[1673380123376,8.52e-06,1340.9,1340.8,3.099]
[1673380123533,7.45767852,1340.9,1340.7,7.84305452]
[1673380123747,7.45767852,1340.9,1340.7,0.10295452]
[1673380123748,8.52e-06,1340.9,1340.7,0.10295452]
[1673380123954,8.52e-06,1340.9,1340.7,3.00395452]
[1673380124283,8.52e-06,1340.9,1340.7,10.46273452]
[1673380124497,8.52e-06,1340.9,1340.7,10.56173452]
[1673380126258,8.52e-06,1340.9,1340.7,18.02052452]
[1673380126862,8.52e-06,1340.9,1340.7,25.47931452]
[1673380127218,8.52e-06,1340.9,1340.7,32.93810452]
[1673380127435,8.52e-06,1340.9,1340.7,25.47931452]
[1673380128222,8.52e-06,1340.9,1340.8,3.79766064]
[1673380128433,8.52e-06,1340.9,1340.8,11.25589064]
[1673380128762,8.52e-06,1340.9,1340.8,3.89666064]
[1673380128996,8.52e-06,1340.9,1340.8,3.79766064]
[1673380129328,8.52e-06,1340.9,1340.7,11.23595452]
[1673380130323,8.52e-06,1340.9,1340.7,3.10295452]
[1673380130531,8.52e-06,1340.9,1340.7,3.00395452]
[1673380131641,7.45768852,1340.9,1340.7,3.00395452]
[1673380133057,8.52e-06,1340.9,1340.7,3.00395452]
[1673380133261,7.45774852,1340.9,1340.7,3.00395452]
[1673380133473,2.58216305,1340.9,1340.7,3.00395452]
[1673380134352,8.52e-06,1340.9,1340.7,3.00395452]
[1673380135419,26.55011852,1340.9,1340.6,0.099]
[1673380135640,28.63621428,1340.9,1340.5,0.099]
[1673380135822,28.63621428,1340.9,1340.4,17.79594629]
[1673380136153,2.79947515,1340.8,1340.4,32.88312232]
[1673380136360,12.08120428,1340.9,1340.4,32.88312232]
[1673380136578,10.34320852,1340.9,1340.4,32.88312232]
[1673380136765,10.34320852,1340.9,1340.5,1.85091551]
[1673380136985,10.34320852,1340.9,1340.5,4.37791913]
[1673380137191,10.34320852,1340.9,1340.6,7.45923]
[1673380137401,13.68394445,1340.9,1340.6,22.47691]
[1673380137941,8.66620852,1340.9,1340.6,26.27457064]
[1673380138134,8.52e-06,1340.9,1340.8,2.5]
[1673380138322,0.16623104,1341.0,1340.8,2.5]
[1673380138323,0.10023104,1341.0,1340.9,1.97400901]
[1673380138746,0.10023104,1341.0,1340.9,2.00100458]
[1673380139162,0.10023104,1341.0,1340.9,9.45867458]
[1673380139398,0.10023104,1341.0,1340.9,9.55767458]
[1673380140778,0.10023104,1341.0,1340.9,24.47301458]
[1673380141358,0.10023104,1341.0,1340.9,17.01534458]
[1673380141563,0.10023104,1341.0,1340.9,9.55767458]
[1673380142035,0.10023104,1341.0,1340.9,17.01534458]
[1673380142253,0.10023104,1341.0,1340.9,9.55767458]
[1673380146380,0.10023104,1341.0,1340.9,17.01534458]
[1673380146561,0.10023104,1341.0,1340.9,9.55767458]
[1673380146780,10.35735104,1341.0,1340.9,2.10000458]
[1673380146959,5.9052268,1341.0,1340.9,1.97400901]
[1673380147162,7.75891197,1341.0,1340.9,1.97400901]
[1673380147621,15.21603197,1341.0,1340.9,1.97400901]
[1673380147902,22.67315197,1341.0,1340.9,1.97400901]
[1673380148160,7.75891197,1341.0,1340.9,1.97400901]
[1673380148318,15.21603197,1341.0,1340.9,1.97400901]
[1673380148529,17.44201593,1341.0,1340.9,1.97400901]
[1673380148778,9.98489593,1341.0,1340.9,1.97400901]
[1673380149166,24.89913593,1341.0,1340.9,1.97400901]
[1673380149383,17.44201593,1341.0,1340.9,1.97400901]
[1673380149699,9.98489593,1341.0,1340.9,1.97400901]
[1673380149910,7.75891197,1341.0,1340.9,1.97400901]
[1673380150150,7.76091197,1341.0,1340.9,1.97400901]
[1673380150374,3.62591197,1341.0,1340.9,1.97400901]
[1673380150553,3.99821076,1341.0,1340.9,1.97400901]
[1673380150955,1.7722268,1341.0,1340.9,1.97400901]
[1673380151589,3.99821076,1341.0,1340.9,1.97400901]
[1673380152750,3.99821076,1341.0,1340.7,18.65807316]
[1673380152934,3.99821076,1341.0,1340.7,15.43007316]
[1673380153425,3.99821076,1341.0,1340.7,22.88886316]
[1673380154305,1.67199576,1340.9,1340.7,22.88886316]
[1673380154510,1.67199576,1340.9,1340.7,15.43007316]
[1673380154777,4.06421076,1341.0,1340.7,11.3660338]
[1673380154967,1.67199576,1340.9,1340.7,18.8248238]
[1673380155146,1.67199576,1340.9,1340.7,11.3660338]
[1673380155352,1.67199576,1340.9,1340.7,18.8248238]
[1673380155566,4.06421076,1341.0,1340.7,21.60103403]
[1673380155809,3.99821076,1341.0,1340.7,21.60103403]
[1673380156000,3.99821076,1341.0,1340.7,14.14224403]
[1673380156261,3.99821076,1341.0,1340.7,11.3660338]
[1673380156436,11.45541076,1341.0,1340.7,3.9076038]
[1673380156668,3.99821076,1341.0,1340.7,11.2673438]
[1673380156966,1.67199576,1340.9,1340.7,18.8250838]
[1673380157520,1.67199576,1340.9,1340.7,26.2838738]
[1673380157873,1.67199576,1340.9,1340.7,0.10994316]
[1673380158088,26.27126972,1340.9,1340.7,0.01094316]
[1673380158473,11.73587098,1341.0,1340.6,0.099]
[1673380158474,15.1326939,1340.8,1340.6,0.099]
[1673380158646,4.51464545,1340.7,1340.3,20.6314101]
[1673380158825,17.91966606,1340.7,1340.4,5.64885056]
[1673380159041,17.91966606,1340.7,1340.4,7.51496243]
[1673380159239,17.91966606,1340.7,1340.4,7.5129469]
[1673380159712,17.91966606,1340.7,1340.4,6.39464511]
[1673380159872,10.46035606,1340.7,1340.4,6.39464511]
[1673380160292,10.46035606,1340.7,1340.4,9.17142608]
[1673380160507,8.78398,1340.7,1340.4,10.28972787]
[1673380161087,8.78398,1340.7,1340.5,2.5]
[1673380161241,1.325,1340.7,1340.5,2.5]
[1673380162198,3.07537606,1340.8,1340.5,17.4198]
[1673380162416,3.00937606,1340.8,1340.5,24.9787]
[1673380162604,3.00937606,1340.8,1340.5,27.75548097]
[1673380162605,1.333,1340.8,1340.5,27.75548097]
[1673380163027,1.333,1340.8,1340.7,7.45879]
[1673380163277,1.333,1340.8,1340.7,0.099]
[1673380163465,12.05636002,1340.9,1340.7,9.95879]
[1673380163466,11.16337606,1340.9,1340.7,9.95879]
[1673380163679,11.16337606,1340.9,1340.8,1.11053959]
[1673380163680,11.09737606,1340.9,1340.8,1.11053959]
[1673380163880,1.67637606,1340.9,1340.8,1.11053959]
[1673380170331,1.67637606,1340.9,1340.8,1.97736455]
[1673380170855,3.722215,1341.0,1340.8,1.97736455]
[1673380171164,3.656215,1341.0,1340.8,1.11053959]
[1673380171339,3.656215,1341.0,1340.8,3.61053959]
[1673380171560,3.656215,1341.0,1340.8,1.11053959]
[1673380171561,1.43023104,1341.0,1340.8,1.11053959]
[1673380172512,11.113335,1341.0,1340.8,1.11053959]
[1673380174214,1.43023104,1341.0,1340.8,1.11053959]
[1673380174528,3.656215,1341.0,1340.8,1.11053959]
[1673380179889,2.326215,1341.0,1340.8,1.11053959]
[1673380180308,5.10869494,1341.0,1340.8,1.11053959]
[1673380180975,5.10869494,1341.0,1340.8,1.10713906]
[1673380181296,12.56600494,1341.0,1340.8,1.10713906]
[1673380181659,1.25660049,1340.9,1340.8,1.10713906]
[1673380181973,12.63200494,1341.0,1340.8,1.10713906]
[1673380182183,12.56600494,1341.0,1340.8,1.10713906]
[1673380183700,2.22598396,1340.9,1340.8,1.10713906]
[1673380184031,21.76331494,1341.0,1340.8,1.10713906]
[1673380184354,21.69731494,1341.0,1340.8,1.10713906]
[1673380184501,26.77548972,1341.0,1340.8,1.10713906]
[1673380185609,2.22598396,1340.9,1340.8,1.10713906]
[1673380185764,1.388,1340.9,1340.8,1.10713906]
[1673380185970,27.65899396,1340.9,1340.8,1.10713906]
[1673380186186,28.21548994,1340.9,1340.8,1.10713906]
[1673380186463,32.85080879,1340.9,1340.8,1.10713906]
[1673380186856,25.39313879,1340.9,1340.8,1.10713906]
[1673380187365,32.85080879,1340.9,1340.8,1.10713906]
[1673380187555,35.08612088,1340.9,1340.8,1.10713906]
[1673380187785,27.62845088,1340.9,1340.8,1.10713906]
[1673380188924,26.24245088,1340.9,1340.8,1.10713906]
[1673380194807,18.78478088,1340.9,1340.8,1.10713906]
[1673380195082,16.00230094,1340.9,1340.8,1.10713906]
[1673380196336,8.54463094,1340.9,1340.8,1.10713906]
[1673380196527,3.90931209,1340.9,1340.8,1.10713906]
[1673380199489,6.69179203,1340.9,1340.8,1.10713906]
[1673380199646,14.14946203,1340.9,1340.8,1.10713906]
[1673380199852,100.09891307,1341.0,1340.8,2.78113906]
[1673380200121,2.23531209,1340.9,1340.8,2.78113906]
[1673380200277,85.18402307,1341.0,1340.8,3.81502497]
[1673380200487,85.11802307,1341.0,1340.8,9.59915497]
[1673380200696,85.11802307,1341.0,1340.8,9.69815497]
[1673380201760,82.33554313,1341.0,1340.8,9.69815497]
[1673380204493,85.11802307,1341.0,1340.8,9.69815497]
[1673380207051,85.11802307,1341.0,1340.8,2.24002497]
[1673380207267,85.11802307,1341.0,1340.8,2.14102497]
[1673380208321,85.11802307,1341.0,1340.8,9.59922497]
[1673380208477,85.11802307,1341.0,1340.8,2.24002497]
[1673380208834,85.11802307,1341.0,1340.8,2.14102497]
[1673380209571,85.11802307,1341.0,1340.8,9.59921497]
[1673380209777,85.11802307,1341.0,1340.8,2.24002497]
[1673380209956,85.11802307,1341.0,1340.8,2.14102497]
[1673380211002,82.33554313,1341.0,1340.8,2.14102497]
[1673380212302,82.33554313,1341.0,1340.8,9.59697228]
[1673380212477,82.33554313,1341.0,1340.8,9.69597228]
[1673380212825,82.33554313,1341.0,1340.8,2.23777228]
[1673380213038,82.33554313,1341.0,1340.8,2.13877228]
[1673380215371,82.33554313,1341.0,1340.8,9.59691228]
[1673380215549,82.33554313,1341.0,1340.8,9.69591228]
[1673380215751,82.33554313,1341.0,1340.8,2.23777228]
[1673380216001,82.33554313,1341.0,1340.8,2.13877228]
[1673380218383,85.11802307,1341.0,1340.8,1.10488637]
[1673380219020,82.33554313,1341.0,1340.8,1.10488637]
[1673380219232,85.11802307,1341.0,1340.8,1.10488637]
[1673380219635,82.33554313,1341.0,1340.8,1.10488637]
[1673380221545,97.24999313,1341.0,1340.8,1.10488637]
[1673380221964,100.03247307,1341.0,1340.8,1.10488637]
[1673380223572,97.24999313,1341.0,1340.8,1.10488637]
[1673380223997,89.79266313,1341.0,1340.8,1.10488637]
[1673380224151,92.57514307,1341.0,1340.8,1.10488637]
[1673380224360,89.79266313,1341.0,1340.8,1.10488637]
[1673380224730,92.57514307,1341.0,1340.8,1.10488637]
[1673380225250,89.79266313,1341.0,1340.8,1.10488637]
[1673380225415,75.83554313,1341.0,1340.8,8.56306637]
[1673380225620,75.83554313,1341.0,1340.8,8.66206637]
[1673380226477,75.83554313,1341.0,1340.8,1.20388637]
[1673380226728,75.83554313,1341.0,1340.8,1.10488637]
[1673380230314,75.81554313,1341.0,1340.8,1.10488637]
[1673380230677,78.59802307,1341.0,1340.8,1.10488637]
[1673380233574,2.23531209,1340.9,1340.8,1.10488637]
[1673380234510,17.15065209,1340.9,1340.8,1.10488637]
[1673380234838,9.69298209,1340.9,1340.8,1.10488637]
[1673380235563,2.23531209,1340.9,1340.8,1.10488637]
[1673380236900,78.66402307,1341.0,1340.8,1.10488637]
[1673380237109,78.59802307,1341.0,1340.8,1.10488637]
[1673380237535,86.05529307,1341.0,1340.8,1.10488637]
[1673380238142,93.51256307,1341.0,1340.8,1.10488637]
[1673380239123,86.05529307,1341.0,1340.8,1.10488637]
[1673380239657,2.23531209,1340.9,1340.8,1.10488637]